bitfinex/quotes_BTCUSD_20240101
["timestamp","ask_amount","ask_price","bid_price","bid_amount"]
[1704144714641,1.05396134,43656.0,43655.0,0.000396]
[1704144714845,1.15396134,43656.0,43655.0,0.000396]
[1704144715051,1.15896134,43656.0,43655.0,0.000396]
[1704144715254,1.17696134,43656.0,43655.0,0.000396]
[1704144715898,1.15896134,43656.0,43655.0,0.000396]
[1704144716102,1.17696134,43656.0,43655.0,0.000396]
[1704144716531,1.89290207,43656.0,43655.0,0.000396]
[1704144716732,1.89290207,43656.0,43651.0,0.02915]
[1704144716733,0.1,43652.0,43649.0,0.0200288]
[1704144716938,0.71605296,43651.0,43649.0,0.0200288]
[1704144717160,0.77313431,43650.0,43649.0,0.0200288]
[1704144717373,1.18065428,43650.0,43649.0,0.0200288]
[1704144717585,1.14491234,43650.0,43649.0,0.0200288]
[1704144717788,1.28065428,43650.0,43649.0,0.0200288]
[1704144717997,1.18736743,43650.0,43649.0,0.0200288]
[1704144718561,1.05162549,43650.0,43649.0,0.11088605]
[1704144718759,1.36513474,43650.0,43649.0,0.11088605]
[1704144719166,1.2603928,43650.0,43649.0,0.11088605]
[1704144720069,1.39602385,43650.0,43649.0,0.11088605]
[1704144720691,1.36889603,43650.0,43649.0,0.11088605]
[1704144721265,1.36889603,43650.0,43649.0,0.0200288]
[1704144722262,1.36889603,43650.0,43649.0,0.11088605]
[1704144722461,1.07091987,43650.0,43649.0,0.11088605]
[1704144722745,0.98955642,43650.0,43649.0,0.11088605]
[1704144722945,1.36893237,43650.0,43649.0,0.11088605]
[1704144723172,1.09805965,43650.0,43649.0,0.11088605]
[1704144723382,0.88955642,43650.0,43649.0,0.11088605]
[1704144723620,0.20876731,43650.0,43649.0,0.11088605]
[1704144723848,0.20876731,43650.0,43649.0,0.0200288]
[1704144724074,0.20876731,43650.0,43649.0,0.11088605]
[1704144724297,0.031,43650.0,43649.0,0.11088605]
[1704144725651,0.054,43650.0,43649.0,0.11088605]
[1704144732193,0.20789307,43650.0,43649.0,0.11088605]
[1704144732396,0.44111018,43650.0,43649.0,0.11088605]
[1704144732846,0.35975711,43650.0,43649.0,0.11088605]
[1704144733039,0.73909972,43650.0,43649.0,0.11088605]
[1704144733237,0.35975711,43650.0,43649.0,0.11088605]
[1704144733444,0.73909782,43650.0,43649.0,0.11088605]
[1704144733652,0.73909782,43650.0,43649.0,0.0200288]
[1704144734281,0.35975711,43650.0,43649.0,0.0200288]
[1704144734484,0.73909592,43650.0,43649.0,0.0200288]
[1704144734691,0.63062516,43650.0,43649.0,0.0200288]
[1704144734926,0.76621361,43650.0,43649.0,0.0200288]
[1704144735553,0.86621361,43650.0,43649.0,0.0200288]
[1704144735771,1.23276561,43650.0,43649.0,0.0200288]
[1704144737666,1.23276561,43650.0,43642.0,0.02915]
[1704144737667,0.1,43648.0,43642.0,0.02915]
[1704144737871,0.05432376,43644.0,43642.0,0.02915]
[1704144738089,0.023,43643.0,43642.0,0.02915]
[1704144738517,0.023,43643.0,43642.0,0.12000725]
[1704144739517,0.034,43643.0,43642.0,0.12000725]
[1704144739734,0.034,43643.0,43642.0,0.09085725]
[1704144739933,0.034,43643.0,43642.0,0.07000725]
[1704144740301,0.029,43643.0,43642.0,0.07000725]
[1704144740727,0.08332376,43643.0,43642.0,0.07000725]
[1704144740927,0.029,43643.0,43642.0,0.07000725]
[1704144741382,0.09032376,43643.0,43642.0,0.07000725]
[1704144741706,0.036,43643.0,43642.0,0.07000725]
[1704144742017,0.10447953,43643.0,43642.0,0.07000725]
[1704144742225,0.11747953,43643.0,43642.0,0.07000725]
[1704144742636,0.41554629,43643.0,43642.0,0.07000725]
[1704144742841,0.036,43643.0,43641.0,0.00014]
[1704144743103,0.08147907,43642.0,43641.0,0.00014]
[1704144743301,0.10447907,43642.0,43641.0,0.00014]
[1704144743590,0.19776592,43642.0,43641.0,0.00014]
[1704144744208,0.023,43642.0,43641.0,0.00014]
[1704144745053,0.029,43642.0,43641.0,0.07014725]
[1704144745241,0.08329383,43642.0,43641.0,0.07014725]
[1704144746616,0.08829383,43642.0,43641.0,0.07014725]
[1704144748029,0.41356963,43642.0,43641.0,0.07014725]
[1704144748231,0.11546503,43642.0,43641.0,0.07014725]
[1704144748453,0.034,43642.0,43641.0,0.07014725]
[1704144748651,0.08831284,43642.0,43641.0,0.07014725]
[1704144748860,0.034,43642.0,43641.0,0.07014725]
[1704144749007,0.11546775,43642.0,43641.0,0.07014725]
[1704144749211,0.034,43642.0,43641.0,0.07014725]
[1704144749411,0.11546775,43642.0,43641.0,0.07014725]
[1704144750878,0.034,43642.0,43641.0,0.07014725]
[1704144751295,0.11546775,43642.0,43641.0,0.07014725]
[1704144751513,0.11550134,43642.0,43641.0,0.07014725]
[1704144751708,0.09250134,43642.0,43641.0,0.07014725]
[1704144751889,0.011,43642.0,43641.0,0.96999136]
[1704144752087,0.011,43642.0,43641.0,1.33333136]
[1704144752501,0.011,43642.0,43641.0,1.27999136]
[1704144752919,0.011,43642.0,43641.0,1.35529136]
[1704144753170,0.011,43642.0,43641.0,1.72191836]
[1704144753372,0.006,43642.0,43641.0,1.72191836]
[1704144753596,0.007,43642.0,43641.0,1.72491836]
[1704144753767,0.001,43642.0,43641.0,1.72491836]
[1704144753969,0.05434123,43656.0,43651.0,0.1]
[1704144754184,0.05434123,43655.0,43652.0,0.07000725]
[1704144754789,0.05434123,43654.0,43652.0,0.07000725]
[1704144754992,0.05434123,43655.0,43652.0,0.07000725]
[1704144755405,0.05434123,43656.0,43652.0,0.07000725]
[1704144755870,0.009,43655.0,43652.0,0.07000725]
[1704144756456,0.017,43655.0,43652.0,0.07000725]
[1704144756657,0.009,43655.0,43652.0,0.07000725]
[1704144756955,0.009,43656.0,43652.0,0.07000725]
[1704144757285,0.01,43656.0,43652.0,0.07000725]
[1704144757488,0.008,43655.0,43652.0,0.07000725]
[1704144758019,0.017,43655.0,43652.0,0.07000725]
[1704144758247,0.009,43655.0,43652.0,0.07000725]
[1704144759651,0.15764061,43655.0,43652.0,0.07000725]
[1704144759875,0.07772,43654.0,43652.0,0.07000725]
[1704144760270,0.08150134,43653.0,43652.0,0.07000725]
[1704144760477,0.15502134,43653.0,43652.0,0.07000725]
[1704144760690,0.45301384,43653.0,43652.0,0.07000725]
[1704144760894,0.45301384,43653.0,43643.0,0.6584]
[1704144761108,0.11628685,43652.0,43646.0,0.25160725]
[1704144761312,0.1706127,43652.0,43646.0,0.25160725]
[1704144761524,0.07732585,43652.0,43647.0,0.07000725]
[1704144762859,0.06532585,43653.0,43647.0,0.17000725]
[1704144763062,0.06032585,43653.0,43647.0,0.17000725]
[1704144763283,0.05432585,43654.0,43647.0,0.17000725]
[1704144763485,0.014,43652.0,43647.0,0.17000725]
[1704144763685,0.009,43652.0,43647.0,0.17000725]
[1704144764097,0.43892939,43655.0,43647.0,0.17000725]
[1704144764098,0.05432585,43654.0,43647.0,0.17000725]
[1704144764447,0.009,43653.0,43647.0,0.17000725]
[1704144764912,0.019,43653.0,43647.0,0.27000725]
[1704144765674,0.01,43653.0,43647.0,0.27000725]
[1704144766106,0.008,43652.0,43647.0,0.27000725]
[1704144766307,0.01,43653.0,43647.0,0.27000725]
[1704144766481,0.10089431,43654.0,43647.0,0.27000725]
[1704144766686,0.009,43653.0,43647.0,0.27000725]
[1704144766887,0.26312585,43655.0,43647.0,0.27000725]
[1704144767241,0.016,43652.0,43647.0,0.27100725]
[1704144767383,0.008,43652.0,43647.0,0.27100725]
[1704144767588,0.26312585,43655.0,43647.0,0.27000725]
[1704144767795,0.009,43653.0,43647.0,0.27000725]
[1704144767995,0.009,43653.0,43647.0,0.27100725]
[1704144769167,0.27512585,43655.0,43647.0,0.27100725]
[1704144769503,0.008,43652.0,43647.0,0.27100725]
[1704144769707,0.008,43652.0,43647.0,0.27000725]
[1704144769906,0.008,43652.0,43647.0,0.07100725]
[1704144770275,0.009,43653.0,43647.0,0.07100725]
[1704144770514,0.26312585,43655.0,43647.0,0.17000725]
[1704144770722,0.009,43653.0,43647.0,0.17100725]
[1704144770933,0.008,43652.0,43647.0,0.17100725]
[1704144771365,0.26312585,43655.0,43647.0,0.17000725]
[1704144771703,0.2088,43655.0,43647.0,0.17000725]
[1704144771966,0.05432585,43659.0,43652.0,0.1]
[1704144772180,0.05432585,43659.0,43653.0,0.07000725]
[1704144772352,0.05432585,43661.0,43653.0,0.07000725]
[1704144772525,0.2016,43660.0,43653.0,0.07000725]
[1704144772732,0.013,43655.0,43653.0,0.07000725]
[1704144773140,0.17927102,43659.0,43653.0,0.07000725]
[1704144773604,0.2016,43660.0,43654.0,0.2]
[1704144773793,0.014,43659.0,43655.0,0.07000725]
[1704144774316,0.2016,43660.0,43655.0,0.07000725]
[1704144775119,0.2016,43660.0,43655.0,0.27000725]
[1704144775542,0.014,43659.0,43655.0,0.27000725]
[1704144775768,0.2166,43660.0,43655.0,0.27000725]
[1704144776183,0.2176,43660.0,43655.0,0.27000725]
[1704144776414,0.2016,43660.0,43655.0,0.27100725]
[1704144776619,0.014,43659.0,43655.0,0.27100725]
[1704144777016,0.2166,43660.0,43655.0,0.27100725]
[1704144777464,0.57455249,43665.0,43655.0,0.27000725]
[1704144777590,0.2259,43664.0,43655.0,0.27000725]
[1704144777806,0.014,43659.0,43655.0,0.27100725]
[1704144778486,0.014,43659.0,43658.0,0.666484]
[1704144778696,0.014,43659.0,43658.0,1.26970836]
[1704144778903,0.2029,43669.0,43662.0,0.1]
[1704144778904,0.018,43664.0,43662.0,0.1]
[1704144779119,0.2029,43669.0,43663.0,0.07000725]
[1704144779325,0.018,43665.0,43663.0,0.07000725]
[1704144779744,0.16307018,43671.0,43662.0,0.2]
[1704144779963,0.011,43664.0,43663.0,0.07000725]
[1704144780181,0.019,43664.0,43662.0,0.202]
[1704144780610,0.11228685,43664.0,43662.0,0.202]
[1704144780892,0.11228685,43664.0,43663.0,0.94885911]
[1704144781097,0.11228685,43664.0,43663.0,1.19965911]
[1704144781098,0.011,43664.0,43663.0,1.19965911]
[1704144781953,0.011,43664.0,43663.0,1.26605911]
[1704144782168,0.1977,43674.0,43670.0,0.2]
[1704144782379,0.22040669,43678.0,43670.0,0.2]
[1704144782380,0.018,43671.0,43670.0,0.2]
[1704144782595,0.018,43671.0,43670.0,0.5]
[1704144782797,0.2052,43677.0,43670.0,0.5]
[1704144783220,0.16613719,43678.0,43670.0,0.5]
[1704144783632,0.005,43671.0,43670.0,0.501]
[1704144784034,0.005,43671.0,43670.0,0.07000725]
[1704144784737,0.17395595,43671.0,43670.0,0.43639125]
[1704144784915,0.16895595,43671.0,43670.0,0.43639125]
[1704144785358,0.16895595,43671.0,43670.0,0.43739125]
[1704144785563,0.16895595,43671.0,43670.0,0.43639125]
[1704144786014,0.17395595,43671.0,43670.0,0.43839125]
[1704144786448,0.17395595,43671.0,43670.0,0.43739125]
[1704144786649,0.005,43671.0,43670.0,0.07100725]
[1704144786854,0.01,43671.0,43670.0,0.07200725]
[1704144787711,0.01,43671.0,43670.0,0.002]
[1704144787928,0.01,43671.0,43670.0,0.368384]
[1704144790102,0.01,43671.0,43670.0,0.002]
[1704144790960,0.01,43671.0,43670.0,0.368384]
[1704144791607,0.01,43671.0,43670.0,0.43839125]
[1704144795979,0.01,43671.0,43670.0,0.002]
[1704144796188,0.34947457,43671.0,43670.0,0.002]
[1704144796414,0.68263457,43671.0,43670.0,0.002]
[1704144796618,0.68286142,43671.0,43670.0,0.002]
[1704144796822,0.98858142,43671.0,43670.0,0.002]
[1704144797017,1.64711353,43671.0,43670.0,0.002]
[1704144797245,0.1,43666.0,43664.0,0.00025]
[1704144797448,0.09328685,43665.0,43664.0,0.00025]
[1704144797700,0.33338685,43665.0,43664.0,0.02831021]
[1704144797827,0.40490685,43665.0,43664.0,0.02831021]
[1704144798230,0.50490685,43665.0,43664.0,0.02831021]
[1704144798440,1.17661285,43665.0,43664.0,0.00025]
[1704144798644,1.18161285,43665.0,43664.0,0.00025]
[1704144798868,1.08633285,43665.0,43664.0,0.00025]
[1704144799306,1.08133285,43665.0,43664.0,0.00025]
[1704144799528,1.26063852,43665.0,43664.0,0.00125]
[1704144800465,1.26063852,43665.0,43655.0,0.366507]
[1704144800466,0.1,43661.0,43655.0,0.34050352]
[1704144800668,0.09328685,43660.0,43656.0,0.3]
[1704144801051,0.15088685,43660.0,43656.0,0.3]
[1704144801249,0.05262,43659.0,43656.0,0.3]
[1704144801884,0.29518,43660.0,43656.0,0.3]
[1704144802034,0.29418,43660.0,43656.0,0.37000725]
[1704144802241,0.29418,43660.0,43657.0,0.07000725]
[1704144802463,0.0487,43659.0,43657.0,0.07000725]
[1704144803065,0.0477,43659.0,43657.0,0.07000725]
[1704144803290,0.29202,43660.0,43657.0,0.07000725]
[1704144803512,0.05034,43659.0,43657.0,0.07000725]
[1704144803658,0.05034,43659.0,43656.0,0.666501]
[1704144803959,0.05034,43659.0,43656.0,0.73650825]
[1704144804580,0.05134,43659.0,43656.0,0.73650825]
[1704144804796,0.05034,43659.0,43656.0,0.74250825]
[1704144805007,0.05034,43659.0,43656.0,0.672501]
[1704144805213,0.05134,43659.0,43656.0,0.73650825]
[1704144805415,0.05134,43659.0,43656.0,0.74250825]
[1704144805616,0.05234,43659.0,43656.0,0.74250825]
[1704144805817,0.05234,43659.0,43657.0,0.07000725]
[1704144806636,0.05134,43659.0,43657.0,0.07000725]
[1704144807477,0.05134,43659.0,43655.0,0.02725159]
[1704144807478,0.11,43658.0,43655.0,0.02725159]
[1704144807688,0.1,43656.0,43655.0,0.02725159]
[1704144807901,0.1,43656.0,43652.0,0.366532]
[1704144808111,0.1,43656.0,43649.0,0.366558]
[1704144808112,0.1,43653.0,43649.0,0.366558]
[1704144808333,0.09328685,43652.0,43647.0,0.366575]
[1704144808567,0.14602685,43652.0,43647.0,0.366575]
[1704144808793,0.0477,43651.0,43647.0,0.366575]
[1704144809007,0.14098685,43651.0,43647.0,0.366575]
[1704144809210,0.2702,43651.0,43647.0,0.43658225]
[1704144809415,0.04944,43650.0,43648.0,0.07000725]
[1704144809628,0.04944,43650.0,43648.0,0.37000725]
[1704144810504,0.2225,43651.0,43648.0,0.37000725]
[1704144811397,0.2245,43651.0,43648.0,0.37000725]
[1704144811605,0.2235,43651.0,43648.0,0.37000725]
[1704144811971,0.2225,43651.0,43648.0,0.37000725]
[1704144812182,0.2235,43651.0,43648.0,0.37000725]
[1704144812405,0.2235,43651.0,43648.0,0.37600725]
[1704144812605,0.2245,43651.0,43648.0,0.37600725]
[1704144813909,0.2245,43651.0,43648.0,0.74257525]
[1704144816562,0.2245,43651.0,43649.0,0.36656]
[1704144816768,0.2245,43651.0,43650.0,0.07000725]
[1704144817596,0.2235,43651.0,43650.0,0.07000725]
[1704144817801,0.2245,43651.0,43650.0,0.07000725]
[1704144818211,0.2225,43651.0,43650.0,0.07000725]
[1704144818623,0.2235,43651.0,43650.0,0.07000725]
[1704144818833,0.2225,43651.0,43650.0,0.07000725]
[1704144819061,0.2225,43651.0,43650.0,0.07300725]
[1704144819264,0.2235,43651.0,43650.0,0.07300725]
[1704144820317,0.2235,43651.0,43650.0,0.43955925]
[1704144826701,0.1535,43651.0,43650.0,0.43955925]
[1704144826922,0.1535,43651.0,43650.0,0.07300725]
[1704144826923,0.2535,43651.0,43650.0,0.07300725]
[1704144828450,0.1535,43651.0,43650.0,0.07300725]
[1704144828672,0.001,43651.0,43650.0,0.43955925]
[1704144830059,0.001,43651.0,43650.0,0.43945525]
[1704144832368,0.001,43651.0,43650.0,0.97267236]
[1704144833175,0.001,43651.0,43650.0,0.96967236]
[1704144833517,0.001,43651.0,43650.0,0.97967236]
[1704144833688,0.002,43651.0,43650.0,0.97967236]
[1704144835051,0.001,43651.0,43650.0,0.97967236]
[1704144835276,0.003,43651.0,43650.0,0.98267236]
[1704144837381,0.003,43651.0,43650.0,0.74945525]
[1704144841934,0.001,43651.0,43650.0,0.74645525]
[1704144842338,0.001,43651.0,43650.0,0.73945525]
[1704144842551,0.001,43651.0,43650.0,0.74545525]
[1704144842952,0.002,43651.0,43650.0,0.73945525]
[1704144843160,0.001,43651.0,43650.0,0.73945525]
[1704144843364,0.002,43651.0,43650.0,0.74845525]
[1704144849152,0.102,43651.0,43650.0,0.44845525]
[1704144851315,0.15282,43651.0,43650.0,0.44845525]
[1704144851516,0.35282,43651.0,43650.0,0.44845525]
[1704144851740,0.35282,43651.0,43650.0,0.08190325]
[1704144851914,0.15282,43651.0,43650.0,0.08190325]
[1704144852114,0.102,43651.0,43650.0,0.08190325]
[1704144853403,0.302,43651.0,43650.0,0.08190325]
[1704144853651,0.3587,43651.0,43650.0,0.08190325]
[1704144855319,0.70660223,43651.0,43650.0,0.08190325]
[1704144855560,0.8806506,43651.0,43650.0,0.08190325]
[1704144855820,1.17872121,43651.0,43650.0,0.08190325]
[1704144856049,1.17872121,43651.0,43650.0,0.012]
[1704144856050,1.54527063,43651.0,43650.0,0.012]
[1704144856271,1.54427063,43651.0,43650.0,0.003]
[1704144856461,1.54427063,43651.0,43650.0,0.004]
[1704144856711,1.54827063,43651.0,43650.0,0.001]
[1704144857210,0.3,43643.0,43642.0,0.3]
[1704144857427,0.39328685,43643.0,43642.0,0.3]
[1704144857647,0.35226,43643.0,43642.0,0.3]
[1704144857886,0.1,43645.0,43642.0,0.43652225]
[1704144858117,0.1,43645.0,43643.0,0.73651225]
[1704144858338,0.2214,43645.0,43644.0,0.366602]
[1704144858563,0.2214,43645.0,43644.0,0.43650525]
[1704144858564,0.4214,43645.0,43644.0,0.43650525]
[1704144859046,0.2214,43645.0,43644.0,0.43650525]
[1704144859289,0.3214,43645.0,43644.0,0.43650525]
[1704144859747,0.3254,43645.0,43644.0,0.366602]
[1704144859961,0.2254,43645.0,43644.0,0.366602]
[1704144860459,0.48288,43645.0,43644.0,0.366602]
[1704144861028,0.48088,43645.0,43644.0,0.366602]
[1704144861229,0.48088,43645.0,43644.0,0.367602]
[1704144861471,0.48088,43645.0,43644.0,0.001]
[1704144861472,0.58088,43645.0,43644.0,0.001]
[1704144862085,0.2,43642.0,43641.0,0.30014]
[1704144862524,0.24758,43642.0,43641.0,0.30014]
[1704144862945,0.24758,43642.0,43641.0,0.37004325]
[1704144863164,0.24858,43642.0,43641.0,0.37404325]
[1704144863606,0.34858,43642.0,43641.0,0.07404325]
[1704144864795,0.34958,43642.0,43641.0,0.07704325]
[1704144865664,0.34958,43642.0,43641.0,0.00714]
[1704144866005,0.3827,43642.0,43641.0,0.00714]
[1704144866207,0.4057,43642.0,43641.0,0.00714]
[1704144867131,0.4057,43642.0,43641.0,0.07704325]
[1704144867739,0.64891711,43642.0,43641.0,0.07704325]
[1704144868539,0.64691711,43642.0,43641.0,0.07004325]
[1704144868950,0.65091711,43642.0,43641.0,0.07004325]
[1704144869390,0.64891711,43642.0,43641.0,0.07004325]
[1704144869797,0.65791711,43642.0,43641.0,0.07104325]
[1704144870222,0.75089711,43642.0,43641.0,0.07104325]
[1704144870399,0.66591711,43642.0,43641.0,0.07104325]
[1704144872792,0.76179711,43642.0,43641.0,0.07104325]
[1704144873713,0.66591711,43642.0,43641.0,0.07104325]
[1704144875254,0.66591711,43642.0,43641.0,0.00114]
[1704144876331,0.76083711,43642.0,43641.0,0.00114]
[1704144876817,0.66591711,43642.0,43641.0,0.07104325]
[1704144877068,0.66591711,43642.0,43641.0,0.00114]
[1704144877069,0.38186,43642.0,43641.0,0.00114]
[1704144877295,0.40454,43642.0,43641.0,0.00114]
[1704144877949,0.73104396,43642.0,43641.0,0.00114]
[1704144878181,0.63775711,43642.0,43641.0,0.00114]
[1704144878392,0.75753711,43642.0,43641.0,0.00114]
[1704144879806,0.66075711,43642.0,43641.0,0.00114]
[1704144880470,0.80145711,43642.0,43641.0,0.00114]
[1704144880679,0.69333711,43642.0,43641.0,0.00114]
[1704144881549,0.65373711,43642.0,43641.0,0.00114]
[1704144881726,0.39752,43642.0,43641.0,0.00114]
[1704144881952,0.63073711,43642.0,43641.0,0.00114]
[1704144882992,0.65373711,43642.0,43641.0,0.00114]
[1704144883233,0.352,43642.0,43641.0,0.07104325]
[1704144883901,0.65277711,43642.0,43641.0,0.07104325]
[1704144884546,0.65277711,43642.0,43641.0,0.00114]
[1704144886459,0.87347711,43642.0,43641.0,0.00114]
[1704144886867,0.80347711,43642.0,43641.0,0.00114]
[1704144888114,0.92911711,43642.0,43641.0,0.00114]
[1704144889731,0.83251711,43642.0,43641.0,0.00114]
[1704144890151,0.92731711,43642.0,43641.0,0.00114]
[1704144890773,0.80371711,43642.0,43641.0,0.07104325]
[1704144891207,0.3268,43642.0,43641.0,0.07104325]
[1704144891630,0.3268,43642.0,43641.0,0.00114]
[1704144892444,0.3498,43642.0,43641.0,0.00114]
[1704144893074,0.029,43642.0,43641.0,0.367767]
[1704144893279,0.159,43642.0,43641.0,0.367767]
[1704144893495,0.029,43642.0,43641.0,0.43767025]
[1704144893918,0.159,43642.0,43641.0,0.43767025]
[1704144894511,0.20376,43642.0,43641.0,0.43767025]
[1704144895542,0.08154194,43648.0,43641.0,0.43767025]
[1704144895543,0.09468,43649.0,43641.0,1.33751436]
[1704144895743,0.09468,43649.0,43642.0,0.36990325]
[1704144895744,0.03,43647.0,43642.0,0.36990325]
[1704144895951,0.03,43647.0,43646.0,0.366585]
[1704144896183,0.03,43647.0,43646.0,0.43648825]
[1704144896955,0.03,43647.0,43646.0,0.06990325]
[1704144897165,0.15568,43653.0,43646.0,0.06990325]
[1704144897364,0.15568,43653.0,43641.0,0.00114]
[1704144897365,0.23,43651.0,43650.0,0.366551]
[1704144897564,0.23,43651.0,43650.0,0.06990325]
[1704144897854,0.13,43650.0,43649.0,0.366553]
[1704144898292,0.01,43652.0,43649.0,0.366553]
[1704144898293,0.0862,43652.0,43649.0,0.366553]
[1704144898503,0.03,43650.0,43644.0,0.3]
[1704144898698,0.03,43650.0,43642.0,0.1825]
[1704144898699,0.09328685,43649.0,43645.0,0.366587]
[1704144898901,0.09328685,43649.0,43646.0,0.666584]
[1704144899142,0.09328685,43649.0,43648.0,0.366568]
[1704144899356,0.03,43650.0,43648.0,0.666568]
[1704144899579,0.03,43650.0,43649.0,0.36656]
[1704144899811,0.107,43651.0,43649.0,0.36656]
[1704144899812,0.007,43651.0,43649.0,0.36656]
[1704144900021,0.15791995,43654.0,43649.0,0.36656]
[1704144900022,0.03,43654.0,43650.0,0.366552]
[1704144900262,0.017,43652.0,43651.0,0.06990325]
[1704144900477,0.007,43652.0,43651.0,0.06990325]
[1704144900912,0.04,43654.0,43651.0,0.43644625]
[1704144901142,0.01,43652.0,43651.0,0.06990325]
[1704144901377,0.01,43652.0,43651.0,0.366543]
[1704144901590,0.01,43652.0,43649.0,0.002]
[1704144901591,0.23,43650.0,43649.0,0.002]
[1704144901817,0.03,43646.0,43645.0,0.66659]
[1704144902038,0.12328685,43646.0,43645.0,0.66659]
[1704144902471,0.12328685,43646.0,43645.0,0.3]
[1704144902723,0.12328685,43646.0,43645.0,0.366589]
[1704144902935,0.12328685,43646.0,43645.0,0.666589]
[1704144903805,0.12328685,43646.0,43645.0,0.3]
[1704144904011,0.03,43646.0,43645.0,0.366589]
[1704144904215,0.031,43646.0,43645.0,0.673589]
[1704144904665,0.032,43646.0,43645.0,0.680589]
[1704144904871,0.032,43646.0,43645.0,0.75049225]
[1704144905285,0.032,43646.0,43645.0,0.680589]
[1704144906216,0.12528685,43646.0,43645.0,0.314]
[1704144906429,0.12528685,43646.0,43645.0,0.380589]
[1704144906657,0.53063726,43646.0,43645.0,0.314]
[1704144907319,0.43735041,43646.0,43645.0,0.314]
[1704144907866,0.53063726,43646.0,43645.0,0.014]
[1704144908264,0.77385437,43646.0,43645.0,0.014]
[1704144908487,1.79277871,43646.0,43645.0,0.014]
[1704144909143,1.6423283,43646.0,43645.0,0.014]
[1704144909355,1.6413283,43646.0,43645.0,0.007]
[1704144909568,1.6413283,43646.0,43645.0,0.009]
[1704144909773,1.6563283,43646.0,43645.0,0.009]
[1704144909987,1.81085692,43646.0,43645.0,0.009]
[1704144910283,1.6553283,43646.0,43645.0,0.002]
[1704144910505,0.24,43642.0,43641.0,0.00014]
[1704144910724,0.56650396,43642.0,43641.0,0.00014]
[1704144910937,0.8373833,43642.0,43641.0,0.00014]
[1704144911151,1.0538233,43642.0,43641.0,0.00014]
[1704144911769,1.21804528,43642.0,43641.0,0.00114]
[1704144912942,1.23504528,43642.0,43641.0,0.00114]
[1704144914142,1.13832528,43642.0,43641.0,0.00114]
[1704144914348,1.24724605,43642.0,43641.0,0.00114]
[1704144915201,1.24724399,43642.0,43641.0,0.00114]
[1704144915429,1.24726858,43642.0,43641.0,0.00114]
[1704144915886,1.24727899,43642.0,43641.0,0.00114]
[1704144916115,1.24727256,43642.0,43641.0,0.00114]
[1704144916985,1.84112638,43642.0,43641.0,0.00114]
[1704144917279,1.89861128,43642.0,43641.0,0.00114]
[1704144917496,2.03475035,43642.0,43641.0,0.00114]
[1704144917935,2.00752916,43642.0,43641.0,0.00114]
[1704144918111,1.90564916,43642.0,43641.0,0.00114]
[1704144918367,2.00044916,43642.0,43641.0,0.00114]
[1704144919147,0.9218615,43642.0,43641.0,0.00114]
[1704144919496,0.8301095,43642.0,43641.0,0.00114]
[1704144919676,0.92339635,43642.0,43641.0,0.00114]
[1704144919878,1.1282414,43642.0,43641.0,0.00114]
[1704144920083,0.92186409,43642.0,43641.0,0.00114]
[1704144920516,0.83011409,43642.0,43641.0,0.00114]
[1704144921138,0.92340094,43642.0,43641.0,0.00114]
[1704144921568,0.83011409,43642.0,43641.0,0.00114]
[1704144922397,0.74841909,43642.0,43641.0,0.00114]
[1704144922623,0.24,43637.0,43636.0,0.366663]
[1704144922849,0.13,43636.0,43635.0,0.366671]
[1704144923524,0.13,43636.0,43635.0,0.43657425]
[1704144924454,0.14,43636.0,43635.0,0.43757425]
[1704144925893,0.048,43636.0,43635.0,0.43757425]
[1704144926122,0.148,43636.0,43635.0,0.43757425]
[1704144928063,0.048,43636.0,43635.0,0.43757425]
[1704144928278,0.018,43636.0,43635.0,0.43757425]
[1704144928488,0.018,43636.0,43635.0,0.73757425]
[1704144929144,0.01,43636.0,43635.0,0.73757425]
[1704144929583,0.01,43636.0,43635.0,0.73857425]
[1704144929792,0.01,43642.0,43635.0,0.73757425]
[1704144929999,0.01,43642.0,43636.0,0.36990325]
[1704144930226,0.01,43641.0,43637.0,0.366657]
[1704144930434,0.01,43641.0,43640.0,0.366636]
[1704144930687,0.01,43641.0,43640.0,0.43653925]
[1704144932089,0.01,43641.0,43640.0,0.44212758]
[1704144932504,0.03,43643.0,43641.0,0.366624]
[1704144932872,0.03,43643.0,43642.0,0.06990325]
[1704144932873,0.04,43643.0,43642.0,0.06990325]
[1704144933085,0.04,43643.0,43642.0,0.07475719]
[1704144933955,0.046,43643.0,43642.0,0.07575719]
[1704144934384,0.046,43643.0,43642.0,0.37247294]
[1704144934385,0.036,43643.0,43642.0,0.37247294]
[1704144934589,0.036,43643.0,43642.0,0.00585394]
[1704144934795,0.006,43643.0,43642.0,0.07575719]
[1704144935004,0.01,43643.0,43642.0,0.07090325]
[1704144935213,0.01,43643.0,43642.0,0.80414125]
[1704144935433,0.006,43643.0,43642.0,1.10414125]
[1704144935648,0.03,43657.0,43647.0,0.07]
[1704144935856,0.01,43655.0,43648.0,0.30312036]
[1704144936063,0.01,43655.0,43654.0,0.366515]
[1704144936235,0.01,43655.0,43654.0,0.43641825]
[1704144936455,0.30365059,43659.0,43654.0,0.43641825]
[1704144936456,0.18751059,43659.0,43654.0,0.44252956]
[1704144936680,0.03,43659.0,43655.0,0.73640525]
[1704144936883,0.04,43659.0,43657.0,0.36649]
[1704144937089,0.21309954,43661.0,43658.0,0.06990325]
[1704144937312,0.12863704,43661.0,43658.0,0.44247463]
[1704144937555,0.12863704,43661.0,43659.0,0.366473]
[1704144937779,0.12863704,43661.0,43660.0,0.43637125]
[1704144938054,0.01,43661.0,43660.0,0.366468]
[1704144938266,0.01,43661.0,43652.0,0.07]
[1704144938267,0.01,43659.0,43654.0,0.001]
[1704144938474,0.09328685,43658.0,43654.0,0.001]
[1704144938661,0.09328685,43658.0,43655.0,0.366508]
[1704144938868,0.09328685,43658.0,43657.0,0.366493]
[1704144939072,0.01,43659.0,43657.0,0.366493]
[1704144939260,0.01,43659.0,43658.0,0.366484]